bitfinex-derivatives/quotes_SOLF0:USTF0_20250228
["timestamp","ask_amount","ask_price","bid_price","bid_amount"]
[1740710148390,1.38224271,129.16,128.91,44.78446189]
[1740710148391,7.7594,128.97,128.91,44.78446189]
[1740710148588,211.06,129.17,128.91,5.96446189]
[1740710148795,0.05124604,129.08,129.05,7.448e-05]
[1740710149090,7.7536,129.06,129.05,7.448e-05]
[1740710149286,211.06,129.17,128.86,211.06]
[1740710149489,1.38087691,129.16,128.96,5.96446189]
[1740710149688,1.38087691,129.16,128.98,44.78446189]
[1740710149887,1.38087691,129.16,128.86,350.8]
[1740710150084,7.7549,129.04,129.0,38.82]
[1740710150289,0.05798233,129.07,128.99,38.82]
[1740710150489,0.05798233,129.07,128.86,211.06]
[1740710150690,7.7566,129.01,129.0,7.483e-05]
[1740710150892,234.59,129.17,128.88,44.78446189]
[1740710151086,1.38014344,129.16,128.9,44.78446189]
[1740710151291,1.38014344,129.16,128.94,44.78446189]
[1740710151493,1.38014344,129.16,128.96,44.78446189]
[1740710151787,1.38014344,129.16,128.95,38.82]
[1740710151993,0.05632891,129.07,129.05,2.639e-05]
[1740710152189,0.05632891,129.07,128.88,5.96446189]
[1740710152492,190.0,129.14,128.92,5.96446189]
[1740710152686,15.5022,129.11,128.93,44.78446189]
[1740710152885,1.38014344,129.1,128.95,44.78446189]
[1740710153091,1.38014344,129.1,128.93,44.78446189]
[1740710153389,211.06,129.17,128.98,44.78446189]
[1740710153590,0.05772759,129.03,129.0,0.05002379]
[1740710153892,1.38068311,129.16,128.88,211.02]
[1740710154094,1.38068311,129.16,128.93,44.78446189]
[1740710154095,15.4967,129.15,128.93,44.78446189]
[1740710154286,1.38068311,129.14,128.89,44.78446189]
[1740710154482,1.38068311,129.16,128.84,7.9596]
[1740710154684,1.38068311,129.16,128.84,184.52446189]
[1740710154884,234.59,129.17,128.88,38.82]
[1740710154885,23.2471,129.14,128.88,38.82]
[1740710155090,1.38068311,129.13,128.87,38.82]
[1740710155287,0.05779918,129.01,128.99,2.327e-05]
[1740710155487,7.7572,129.0,128.99,2.327e-05]
[1740710155688,1.37907713,129.0,128.78,7.883]
[1740710155890,1.37907713,129.0,128.81,44.78448516]
[1740710156095,1.37907713,129.0,128.87,38.82002327]
[1740710156394,211.02,129.04,128.9,38.82002327]
[1740710156591,211.02,129.04,128.92,38.82002327]
[1740710156795,211.02,129.04,128.94,44.78448516]
[1740710156991,7.759,128.97,128.96,1.356e-05]
[1740710157698,211.02,129.04,128.82,211.08]
[1740710157891,211.02,129.04,128.92,44.78448516]
[1740710158093,211.08,129.13,128.95,38.82002327]
[1740710158289,0.05100401,128.99,128.98,38.82002327]
[1740710158496,211.08,129.13,129.01,38.82002327]
[1740710158793,1.38217913,129.12,128.82,211.08]
[1740710158993,1.38217913,129.12,128.93,38.82002327]
[1740710159193,1.38217913,129.12,128.95,38.82002327]
[1740710159390,1.38217913,129.12,128.95,44.78448516]
[1740710159594,1.38217913,129.12,128.82,211.08]
[1740710159796,7.762,128.92,128.89,38.82002327]
[1740710159996,0.05716507,129.05,128.89,38.82002327]
[1740710160295,15.5027,129.1,128.96,1.757e-05]
[1740710160498,211.08,129.13,129.0,44.78448516]
[1740710160499,1.38076203,129.09,129.0,44.78448516]
[1740710160700,7.7573,129.0,128.98,44.78448516]
[1740710160998,211.08,129.13,128.98,38.82002327]
[1740710161191,1.38278954,129.12,128.99,38.82002327]
[1740710161390,211.08,129.13,129.02,38.82002327]
[1740710161591,0.05078365,129.07,129.03,1.55]
[1740710161790,211.79176282,129.22,129.03,1.55]
[1740710161994,211.79176282,129.22,129.09,44.78448516]
[1740710162196,0.75176282,129.22,129.12,38.82002327]
[1740710162391,117.02815401,129.25,129.12,38.82002327]
[1740710162692,117.02815401,129.25,129.03,1.55]
[1740710162693,117.02815401,129.25,129.18,38.82002327]
[1740710162893,117.02815401,129.25,129.19,38.82002327]
[1740710162894,37.59944022,129.23,129.19,38.82002327]
[1740710163096,29.85554022,129.23,129.13,1.5488]
[1740710163302,4.97102341,129.23,129.22,38.82002327]
[1740710163501,59.1391341,129.24,129.22,44.78448516]
[1740710163804,16.55288811,129.25,129.23,44.78448516]
[1740710163999,16.55288811,129.25,129.24,44.78448516]
[1740710164203,16.55288811,129.32,129.24,44.78448516]
[1740710164402,16.55288811,129.32,129.29,38.82002327]
[1740710164598,16.55288811,129.32,129.3,38.82002327]
[1740710164903,16.53178811,129.32,129.31,46.33108516]
[1740710165100,16.58569544,129.32,129.31,46.33108516]
[1740710165298,197.78479495,129.33,129.31,7.51106189]
[1740710165601,175.55046712,129.33,129.32,7.51096189]
[1740710165806,169.58600523,129.33,129.32,1.5465]
[1740710166004,123.18600523,129.33,129.32,24.7465]
[1740710166200,123.18600523,129.33,129.32,32.4845]
[1740710166404,111.25820523,129.33,129.32,32.4845]
[1740710166605,200.83099368,129.34,129.32,24.7465]
[1740710166804,0.05944294,129.34,129.32,32.4844]
[1740710167007,218.8432,129.6,129.32,24.7465]
[1740710167200,1.39001287,129.59,129.33,1.5464]
[1740710167803,7.73,129.36,129.33,1.5464]
[1740710168003,7.73,129.39,129.33,1.5464]
[1740710168199,7.73,129.36,129.33,1.5464]
[1740710168395,46.44944294,129.34,129.19,83.17702099]
[1740710168706,7.73,129.26,129.19,83.17702099]
[1740710168896,46.44944294,129.31,129.19,83.17702099]
[1740710169099,7.73,129.33,129.31,260.02243242]
[1740710169299,11.933,129.47,129.31,260.02243242]
[1740710169602,46.44944294,129.39,129.31,260.02243242]
[1740710169899,54.18744294,129.32,129.31,260.02243242]
[1740710170105,54.18744294,129.32,129.31,2.67203763]
[1740710170305,69.64944294,129.32,129.15,210.64]
[1740710170604,46.44944294,129.28,129.15,210.64]
[1740710170799,7.73,129.27,129.15,210.64]
[1740710171002,210.64,129.46,129.2,0.05450761]
[1740710171202,7.73,129.26,129.2,0.05450761]
[1740710171397,0.04976402,129.22,129.15,210.64]
[1740710171807,210.64,129.46,129.22,0.05214769]
[1740710172103,1.38996658,129.45,129.22,0.05214769]
[1740710172403,1.38996658,129.45,129.15,210.64]
[1740710172404,7.73,129.28,129.15,210.64]
[1740710172597,210.64,129.46,129.15,210.64]
[1740710172801,7.73,129.32,129.15,210.64]
[1740710173203,0.05214964,129.32,129.29,0.05743051]
[1740710173706,11.933,129.47,129.29,23.2]
[1740710173905,0.05910046,129.32,129.29,0.05672802]
[1740710174206,7.73,129.46,129.29,23.2]
[1740710174409,7.73,129.46,129.28,210.6]
[1740710174603,210.6,129.62,129.28,210.6]
[1740710174799,7.73,129.42,129.28,210.6]
[1740710175002,7.73,129.36,129.28,210.6]
[1740710175306,7.73,129.33,129.19,210.5]
[1740710175499,7.73,129.32,129.17,210.5]
[1740710175701,0.05710037,129.36,129.18,210.5]
[1740710175898,11.8932,129.49,129.25,0.05004321]
[1740710176101,11.8932,129.49,129.26,210.5]
[1740710176304,0.05662327,129.28,129.26,210.5]
[1740710176505,7.73,129.31,129.17,210.5]
[1740710176705,7.73,129.33,129.17,210.5]
[1740710176901,222.3932,129.49,129.17,210.5]
[1740710177107,7.73,129.36,129.17,210.5]
[1740710177303,7.73,129.32,129.17,210.5]
[1740710177502,7.73,129.3,129.17,210.5]
[1740710177704,7.73,129.31,129.17,210.5]
[1740710177906,0.05797795,129.26,129.23,0.05184405]
[1740710178105,7.73,129.35,129.23,0.05184405]
[1740710178307,222.3932,129.49,129.17,234.03]
[1740710178506,7.73,129.38,129.18,1.40477833]
[1740710178706,7.73,129.41,129.18,1.40477833]
[1740710179010,7.73,129.4,129.18,24.93477833]
[1740710179212,7.73,129.45,129.19,1.40477833]
[1740710179512,7.8027,129.49,129.28,0.05001954]
[1740710179805,7.73,129.38,129.17,210.5]
[1740710180205,7.73,129.38,129.18,1.40452121]
[1740710180606,7.73,129.36,129.18,1.40452121]
[1740710180803,7.73,129.32,129.27,0.05625446]
[1740710181007,0.05266872,129.29,129.27,0.05625446]
[1740710181211,7.73,129.28,129.19,210.42]
[1740710181706,4.1393,129.48,129.19,210.42]
[1740710182011,7.73,129.35,129.19,210.42]
[1740710182211,7.73,129.39,129.2,1.40494036]
[1740710182411,7.73,129.41,129.2,1.40494036]
[1740710182611,7.73,129.42,129.26,0.05299894]
[1740710182814,7.8027,129.49,129.26,0.05299894]
[1740710183003,7.73,129.45,129.22,1.40494036]
[1740710183310,7.73,129.4,129.19,210.42]
[1740710183611,7.7516,129.56,129.2,1.40409633]
[1740710183807,7.73,129.46,129.2,1.40409633]
[1740710184109,7.7516,129.56,129.28,0.05455153]
[1740710184412,7.73,129.37,129.28,0.05455153]
[1740710184612,7.73,129.38,129.2,1.40422976]
[1740710184815,7.73,129.4,129.2,1.40422976]
[1740710185015,7.73,129.46,129.19,210.42]
[1740710185203,7.73,129.46,129.2,24.93406023]
[1740710185506,0.05448642,129.34,129.31,0.05107696]
[1740710186010,7.7337,129.4,129.2,1.40406023]
[1740710186307,7.73,129.31,129.21,1.40406023]
[1740710186508,7.73,129.28,129.19,210.42]
[1740710186718,3.8224,129.39,129.29,0.05462566]
[1740710186913,8.068,129.38,129.19,210.42]
[1740710187116,0.05064842,129.25,129.19,210.42]
[1740710187313,7.73,129.32,129.19,210.42]
[1740710187508,3.8224,129.39,129.2,1.40504556]
[1740710187710,7.73,129.3,129.2,1.40504556]
[1740710187912,7.73,129.31,129.19,210.42]
[1740710188210,7.73,129.31,129.12,30.91800569]
[1740710188211,3.8224,129.39,129.12,30.91800569]
[1740710188411,1.38398624,129.38,129.1,210.34]
[1740710188612,7.73,129.23,129.11,1.40620182]
[1740710188910,7.73,129.24,129.23,0.05382857]
[1740710189108,7.7373,129.34,129.23,0.05382857]
[1740710189307,3.8224,129.39,129.11,1.40632266]
[1740710189514,0.05074663,129.25,129.11,1.40632266]
[1740710189818,7.73,129.4,129.27,0.05459854]
[1740710190016,7.73,129.41,129.28,210.4]
[1740710190319,7.73,129.43,129.29,1.40425169]
[1740710190515,7.73,129.45,129.29,1.40425169]
[1740710190712,3.8679,129.5,129.29,1.40425169]
[1740710190913,7.73,129.45,129.29,1.40425169]
[1740710191111,3.8679,129.5,129.29,1.40425169]
[1740710191112,0.05012313,129.38,129.36,0.05707473]
[1740710191414,0.05012313,129.38,129.37,1.5459]
[1740710191618,7.73,129.38,129.37,1.5459]
[1740710191919,4.0751,129.49,129.37,1.5459]
[1740710192111,0.05937245,129.39,129.37,1.5459]
[1740710192519,3.8679,129.5,129.37,24.7259]
[1740710192718,7.73,129.42,129.37,1.5459]
[1740710193018,7.73,129.39,129.37,1.5459]
[1740710193210,7.73,129.38,129.37,1.5459]
[1740710193415,27.0479,129.5,129.18,210.38]
[1740710193617,7.73,129.3,129.19,1.40497992]
[1740710193917,3.8679,129.5,129.33,0.05680697]
[1740710193918,0.05886953,129.35,129.33,0.05680697]
[1740710194119,0.05886953,129.35,129.23,113.36602088]
[1740710194318,7.73,129.26,129.23,113.36602088]
[1740710194518,7.73,129.25,129.23,113.36602088]
[1740710194716,3.8679,129.5,129.23,113.36602088]
[1740710194923,7.73,129.26,129.23,113.36602088]
[1740710195221,7.73,129.24,129.23,113.36602088]
[1740710195622,7.73,129.24,129.23,113.41999294]
[1740710195815,23.22,129.24,129.23,0.05397206]
[1740710196120,23.22,129.24,129.22,80.23042278]
[1740710196316,23.22,129.24,129.2,206.12003797]
[1740710196522,0.04924257,129.26,129.2,206.12003797]
[1740710196821,23.22,129.26,129.2,206.12003797]
[1740710197020,1.38789216,129.25,129.2,206.12003797]
[1740710197218,1.38789216,129.24,129.2,206.12003797]
[1740710197419,0.05517351,129.24,129.22,0.05868607]
[1740710197921,1.38763676,129.35,129.12,4.0775]
[1740710198122,1.38763676,129.34,129.04,126.75306501]
[1740710198324,0.05492332,129.24,129.22,0.05487636]
[1740710198724,23.22,129.24,129.04,126.75306501]
[1740710198913,0.05107947,129.24,129.22,0.05580067]
[1740710199418,1.38799859,129.36,129.05,1.40690293]
[1740710199620,119.10984675,129.23,129.22,0.05679197]
[1740710199916,154.62653246,129.24,129.23,7.7434]
[1740710200121,126.03983246,129.24,129.16,210.48]
[1740710200321,126.03983246,129.24,129.12,210.48]
[1740710200822,101.10463246,129.24,129.13,2.9546096]
[1740710201022,232.04474653,129.25,129.23,7.7434]
[1740710201214,126.37474653,129.25,129.24,210.48]
[1740710201413,20.52024653,129.25,129.24,210.48]
[1740710201617,84.98391218,129.33,129.24,235.10495397]
[1740710201816,84.98391218,129.33,129.25,2.95225397]
[1740710202121,84.98391218,129.33,129.31,7.7385]
[1740710202424,84.98391218,129.33,129.32,1.5465]
[1740710203027,72.85361218,129.33,129.32,24.7465]
[1740710203426,4.674e-05,129.34,129.32,24.7465]
[1740710203625,11.7054,129.56,129.32,24.7465]
[1740710203817,59.22024653,129.48,129.36,7.735]
[1740710204022,11.7054,129.56,129.37,212.0259]
[1740710204325,60.60811409,129.49,129.38,212.0258]
[1740710204526,1.38786756,129.49,129.39,1.5457]
[1740710204725,59.22024653,129.48,129.39,1.5457]
[1740710205026,59.27577015,129.45,129.42,0.05907613]
[1740710205226,59.27577015,129.45,129.43,1.5452]
[1740710205426,59.22024653,129.44,129.43,1.5452]
[1740710205726,74.70029327,129.44,129.38,266.83635861]
[1740710205921,74.70029327,129.39,129.38,56.35635861]
[1740710206126,74.70029327,129.39,129.25,7.7417]
[1740710206321,59.22024653,129.33,129.23,1.5376]
[1740710206528,59.22024653,129.32,129.23,1.5376]
[1740710206825,59.22024653,129.33,129.23,1.5376]
[1740710207021,0.05883015,129.29,129.26,0.05224107]
[1740710207422,1.38786756,129.49,129.23,1.5376]
[1740710207624,59.22024653,129.33,129.23,1.5376]
[1740710207821,0.05087753,129.29,129.26,0.04880672]
[1740710208029,1.38786756,129.49,129.26,126.6125737]
[1740710208229,59.22024653,129.41,129.26,126.6125737]
[1740710208529,59.22024653,129.42,129.26,126.56376698]
[1740710208730,1.38786756,129.49,129.26,126.56376698]
[1740710209024,59.22024653,129.43,129.29,7.7392]
[1740710209232,0.04980358,129.39,129.36,0.05496713]
[1740710209727,74.70029327,129.37,129.25,126.56376698]
[1740710210026,15.48004674,129.32,129.25,126.56376698]
[1740710210225,59.22024653,129.27,129.25,126.56376698]
[1740710210424,59.22024653,129.26,129.25,126.56376698]
[1740710210731,74.70029327,129.26,129.23,95.99486983]
[1740710210931,74.70029327,129.24,129.23,95.99486983]
[1740710211225,0.0497814,129.27,129.22,15.06747656]
[1740710211530,23.22,129.27,129.23,0.05558794]
[1740710211730,23.22,129.27,129.2,303.37218256]
[1740710211731,7.7446,129.21,129.2,256.95218256]
[1740710211928,210.39694385,129.26,129.09,49.62208501]
[1740710212129,210.39694385,129.26,129.09,49.60138501]
[1740710212329,210.34,129.26,129.09,49.60138501]
[1740710212932,0.05908296,129.19,129.16,0.04908363]
[1740710213525,210.34,129.26,129.09,49.60138501]
[1740710213726,0.04973716,129.19,129.16,0.05288835]
[1740710214126,10.15390552,129.24,129.03,210.5]
[1740710214332,10.15390552,129.24,129.21,7.74]
[1740710214728,10.15390552,129.24,129.22,77.38]
[1740710214929,10.15390552,129.24,129.22,85.12]
[1740710214930,10.20296771,129.24,129.22,85.12]
[1740710215229,10.20296771,129.24,129.23,85.12]
[1740710215532,61.31494913,129.27,129.23,85.12]
[1740710215834,61.31494913,129.27,129.24,1.5475]
[1740710216236,61.31494913,129.27,129.22,0.05220185]
[1740710216435,61.31494913,129.27,129.24,7.74]
[1740710216734,61.31494913,129.27,129.22,0.05220185]
[1740710216735,0.05123711,129.26,129.22,0.05220185]
[1740710217135,55.08954913,129.27,129.26,85.12]
[1740710217634,78.57931705,129.32,129.26,23.2]
[1740710217932,54.2390591,129.39,129.31,29.96165396]
[1740710218131,54.2390591,129.39,129.27,1.5471]
[1740710218132,54.2390591,129.39,129.38,29.96165396]
[1740710218930,0.05301296,129.4,129.27,1.5471]
[1740710219139,0.05301296,129.4,129.31,22.22165396]
[1740710219434,30.9132,129.4,129.32,1.5465]
[1740710219639,3.9899,129.39,129.21,7.5079]
[1740710219837,0.04893076,129.37,129.26,29.96165396]
[1740710220030,0.04893076,129.37,129.21,7.5079]
[1740710220230,0.04893076,129.37,129.3,29.96165396]
[1740710220432,3.9899,129.39,129.24,22.22165396]
[1740710220635,3.9899,129.39,129.23,29.96165396]
[1740710220831,0.05300206,129.35,129.32,0.05257253]
[1740710221039,0.05300206,129.35,129.29,29.96165396]
[1740710221334,3.9899,129.39,129.21,3.7618]
[1740710221538,3.9899,129.39,129.25,29.96165396]
[1740710221831,3.9899,129.39,129.14,210.42]
[1740710222134,3.9899,129.39,129.15,29.96165396]
[1740710222331,0.05277157,129.28,129.08,3.8202]
[1740710222534,210.51277157,129.28,129.11,29.96165396]
[1740710222735,210.46,129.28,129.1,29.96165396]
[1740710222941,210.46,129.28,129.12,29.96165396]
[1740710223133,210.46,129.28,129.13,29.96165396]
[1740710223533,210.46,129.28,128.95,3.8202]
[1740710223534,7.7464,129.18,129.01,7.7561]
[1740710223738,0.05090074,129.22,129.19,1.296e-05]
[1740710223939,0.05090074,129.22,129.11,22.22165396]
[1740710224140,210.46,129.28,129.15,29.96165396]
[1740710224334,210.46,129.28,129.15,7.74]
[1740710224540,210.46,129.28,128.95,214.2802]
[1740710224737,210.46,129.28,129.06,22.22165396]
[1740710224943,210.46,129.28,129.08,29.96165396]
[1740710225138,1.38427947,129.27,129.1,0.05881901]
[1740710225345,0.05418016,129.13,129.1,30.02047297]
[1740710225544,210.46,129.28,129.13,29.96165396]
[1740710225739,210.46,129.28,129.13,7.74]
[1740710225942,210.46,129.28,128.95,214.2802]
[1740710226142,5.18605277,129.27,129.07,22.22165396]
[1740710226344,1.38485277,129.26,129.04,29.96165396]
[1740710226537,1.38485277,129.26,129.02,29.96165396]
[1740710226843,0.05755505,129.16,129.14,0.05418115]
[1740710227037,0.05755505,129.16,129.03,1.55]
[1740710227235,1.38485277,129.25,129.03,1.55]
[1740710227440,1.38485277,129.24,129.03,9.29]
[1740710227638,1.38485277,129.23,129.03,9.29]
[1740710227837,1.38485277,129.22,129.03,1.55]
[1740710228041,27.0212,129.27,128.85,210.56]
[1740710228239,0.05777792,129.14,129.11,4.386e-05]
[1740710228438,210.56,129.13,128.95,22.22165396]
[1740710228644,210.56,129.13,128.86,4.0443]
[1740710228951,210.56,129.13,128.96,29.96169782]
[1740710229242,1.38360449,129.12,128.93,7.74004386]
[1740710229446,7.7586,128.98,128.9,29.96169782]
[1740710229643,0.05075293,129.04,129.01,8.762e-05]
[1740710229947,7.7593,128.97,128.89,29.96169782]
[1740710230241,210.56,129.13,128.93,29.96169782]
[1740710230449,1.38331339,129.12,128.98,7.74004386]
[1740710230647,1.38331339,129.12,128.96,7.74004386]
[1740710230944,210.56,129.13,128.99,7.74004386]
[1740710231147,210.56,129.13,128.81,3.9643]
[1740710231148,0.05292092,129.05,129.03,4.67e-05]
[1740710231541,1.38330266,129.12,129.04,29.96169782]
[1740710231742,30.36311395,129.21,129.1,29.96169782]
[1740710231948,30.36311395,129.21,129.13,7.74004386]
[1740710232145,30.36311395,129.21,129.07,29.96169782]
[1740710232351,30.36311395,129.21,129.08,29.96169782]
[1740710232553,30.36311395,129.21,129.11,7.74004386]
[1740710232752,30.36311395,129.21,129.12,1.5489]
[1740710232949,0.0536876,129.16,129.12,7.754e-05]
[1740710233151,0.0536876,129.16,129.0,3.9049]
[1740710233345,0.0536876,129.16,129.04,7.74004386]
[1740710233647,210.76,129.27,129.0,3.9049]
[1740710233846,210.76,129.27,129.13,7.74004386]
[1740710234048,210.76,129.27,129.15,7.74004386]
[1740710234248,210.76,129.27,129.14,1.5487]
[1740710234454,0.04926433,129.21,129.14,8.565e-05]
[1740710234659,0.04926433,129.21,129.0,3.9049]
[1740710234857,0.04926433,129.21,129.02,7.74004386]
[1740710235052,0.04926433,129.21,128.93,3.819]
[1740710235258,24.91384876,129.24,128.97,7.74004386]
[1740710235452,1.38384876,129.23,128.97,7.74004386]
[1740710235654,7.7546,129.05,128.98,29.96169782]
[1740710235948,15.4881,129.22,128.97,29.96169782]
[1740710235949,210.81212355,129.12,128.97,29.96169782]
[1740710236151,3.8493,129.11,128.99,29.96169782]
[1740710236350,210.76,129.12,129.0,7.74004386]
[1740710236561,234.0,129.12,128.84,11.9459]
[1740710236860,1.38262474,129.11,128.88,29.96169782]
[1740710237063,1.38262474,129.11,128.89,22.22165396]
[1740710237360,7.7584,128.98,128.97,9.221e-05]
[1740710237558,0.05938987,128.99,128.88,7.74004386]
[1740710237859,3.8493,129.1,128.84,8.1269]
[1740710237860,1.38157228,129.09,128.89,7.74004386]
[1740710238057,1.38157228,129.09,128.86,29.96169782]
[1740710238252,1.38157228,129.09,128.84,8.1269]
[1740710238253,1.38157228,129.09,128.87,22.22165396]
[1740710238457,1.38157228,129.09,128.88,29.96169782]
[1740710238663,1.38157228,129.09,128.89,29.96169782]
[1740710238857,0.05314963,128.99,128.97,9.41e-05]
[1740710239058,7.7584,128.98,128.97,9.41e-05]
[1740710239260,210.88,128.98,128.7,35.55544136]
[1740710239462,3.8493,128.97,128.77,29.96169782]
[1740710239653,3.8493,128.97,128.84,22.22165396]
[1740710239855,3.8493,128.97,128.88,7.74004386]
[1740710240062,9.58938454,128.96,128.82,10.15645396]
[1740710240362,9.58938454,128.96,128.83,17.89649782]
[1740710240566,0.04985176,128.9,128.88,9.193e-05]
[1740710240964,23.32985176,128.9,128.88,9.193e-05]
[1740710241163,7.7638,128.89,128.88,9.193e-05]
[1740710241363,0.04985176,128.9,128.88,9.193e-05]
[1740710241566,0.04985176,128.9,128.89,17.89649782]
[1740710241766,210.88,129.0,128.89,17.89649782]
[1740710241767,7.7596,128.97,128.89,17.89649782]
[1740710242060,210.88,129.0,128.94,17.89649782]
[1740710242362,210.88,129.0,128.9,17.89649782]
[1740710242565,210.88,129.0,128.7,8.0848]
[1740710242760,210.88,129.0,128.89,7.74004386]
[1740710242967,210.88,129.0,128.91,17.89649782]
[1740710243263,0.05717101,128.86,128.84,0.04985176]
[1740710243566,210.88,129.0,128.9,17.89649782]
[1740710243767,210.88,129.0,128.9,17.87649782]
[1740710244066,30.36311395,129.04,128.94,17.87649782]
[1740710244265,30.36311395,129.04,128.95,17.87649782]
[1740710244462,30.36311395,129.04,128.7,8.0848]
[1740710244665,80.96830388,129.05,128.95,17.87649782]
[1740710244866,245.23241395,129.09,128.96,8.197e-05]
[1740710244867,0.05767421,129.01,128.96,8.197e-05]
[1740710245067,7.759,128.97,128.96,8.197e-05]
[1740710245569,7.759,128.97,128.7,8.0848]
[1740710245570,234.28,128.97,128.7,8.0848]
[1740710245764,211.02,128.97,128.85,17.87649782]
[1740710245969,7.7643,128.89,128.86,17.87649782]
[1740710246166,0.05531271,128.92,128.9,0.0505732]
[1740710246668,34.21241395,129.09,128.91,0.53995994]
[1740710246861,34.21241395,129.09,128.73,211.02]
[1740710247364,30.36311395,129.09,129.02,0.53995994]
[1740710247564,30.36311395,129.09,129.03,1.55]
[1740710247764,30.36311395,129.06,129.03,1.55]
[1740710247970,30.36311395,129.06,129.03,1.171e-05]
[1740710248172,7.7548,129.04,129.03,1.171e-05]
[1740710248367,53.60311395,129.06,128.86,4.1351]
[1740710248669,30.36311395,129.06,128.96,0.53995994]
[1740710248864,30.36311395,129.06,128.95,0.53995994]
[1740710249069,7.759,128.97,128.96,0.53995994]
[1740710249370,0.05634221,129.02,128.99,0.05301786]
[1740710249567,7.7572,129.0,128.95,0.53995994]
[1740710249771,30.36311395,129.06,128.97,0.53995994]
[1740710249971,30.36311395,129.06,129.01,0.53995994]
[1740710250170,24.14941395,129.15,129.05,0.53995994]
[1740710250370,24.14941395,129.15,129.08,0.53995994]
[1740710250674,24.14941395,129.15,129.06,1.5496]
[1740710250970,0.05577773,129.13,128.86,3.8478]
[1740710251266,0.05577773,129.13,128.87,3.9185]
[1740710251471,9.5062368,129.14,129.08,0.53995994]
[1740710251668,9.5062368,129.14,129.09,1.5493]
[1740710251875,24.14941395,129.15,129.09,2.08925994]
[1740710252071,24.14941395,129.15,129.13,0.53995994]
[1740710252269,0.05450714,129.13,129.12,0.53995994]
[1740710252468,24.14941395,129.15,129.14,0.53995994]
[1740710252774,80.96830388,129.16,129.09,1.5493]
[1740710253172,80.96830388,129.16,129.09,2.08925994]
[1740710253475,4.072,129.21,129.11,0.53995994]
[1740710253476,7.7498,129.13,129.11,0.53995994]
[1740710253675,4.072,129.21,129.12,1.5489]
[1740710253866,0.0501761,129.14,129.12,1.5489]
[1740710254069,0.0501761,129.14,129.11,4.171e-05]
[1740710254375,23.24,129.14,128.88,210.98]
[1740710254571,3.9039,129.16,128.76,210.98]
[1740710254874,1.38299797,129.15,128.66,210.98]
[1740710255368,1.38299797,129.15,128.67,1.40979987]
[1740710255676,0.0520315,128.92,128.67,1.40979987]
[1740710256171,7.9869,129.02,128.67,1.40979987]
[1740710256672,0.0518242,128.81,128.67,1.40979987]
[1740710256868,211.02,129.03,128.68,23.53]
[1740710257069,211.02,129.03,128.69,1.40979987]
[1740710257272,7.9869,129.09,128.7,1.40979987]
[1740710257476,4.0537,129.1,128.71,1.40979987]
[1740710257770,211.02,129.13,128.72,1.40979987]
[1740710258069,121.45245582,129.21,128.89,0.05485528]
[1740710258276,121.45245582,129.21,128.9,211.02]
[1740710258476,121.45245582,129.21,128.92,23.53]
[1740710259173,51.61991688,129.26,128.92,46.79]
[1740710259174,80.96830388,129.1,128.92,46.79]
[1740710259373,62.31160388,129.1,128.92,23.53]
[1740710259576,0.05197274,129.07,129.04,0.04989079]
[1740710259972,44.72690388,129.1,128.91,7.9583]
[1740710260180,55.81816797,129.1,128.91,7.9583]
[1740710260376,0.05873067,129.07,129.04,0.05921724]
[1740710260873,11.09126409,129.07,128.9,211.02]
[1740710261176,11.09126409,129.07,128.78,23.53]
[1740710261177,23.29935091,129.07,128.8,210.98]
[1740710261371,11.09126409,129.07,128.8,210.98]
[1740710262479,0.05209464,128.95,128.92,0.05692729]
[1740710262670,121.45245582,129.31,128.92,210.99692729]
[1740710262872,15.476,129.32,128.92,210.99692729]
[1740710262873,11.09126409,129.18,128.92,234.47]
[1740710263179,121.45245582,129.25,128.93,1.40755239]
[1740710263478,132.54371991,129.25,128.93,1.40755239]
[1740710263878,132.54371991,129.25,128.93,23.53]
[1740710264077,0.05660475,129.1,129.08,0.05571612]
[1740710264273,0.05660475,129.1,129.09,210.94]
[1740710264477,121.45245582,129.25,129.09,210.94]
[1740710264977,132.54371991,129.25,129.09,210.94]
[1740710265279,121.45245582,129.25,129.09,210.94]
[1740710265486,121.45245582,129.25,129.09,234.16]